bitfinex/quotes_ETHUSD_20230404
["timestamp","ask_amount","ask_price","bid_price","bid_amount"]
[1680634270933,0.10245503,1868.8,1868.7,5.85591771]
[1680634271549,0.10245503,1868.8,1868.7,11.48891771]
[1680634272627,0.10245503,1868.8,1868.7,11.71891771]
[1680634274039,0.10245503,1868.8,1868.7,13.49498148]
[1680634275718,0.10245503,1868.8,1868.7,16.49498148]
[1680634277854,0.10245503,1868.8,1868.7,16.49958948]
[1680634280073,0.10245503,1868.8,1868.7,17.02302378]
[1680634287259,0.09858108,1868.8,1868.7,17.02302378]
[1680634297982,0.09858108,1868.8,1868.7,14.72352571]
[1680634298186,0.09858108,1868.8,1868.7,11.71891771]
[1680634299185,0.09858108,1868.8,1868.7,11.48891771]
[1680634300508,0.09858108,1868.8,1868.7,11.71891771]
[1680634309534,0.09652354,1868.8,1868.7,11.71891771]
[1680634312402,0.74152354,1868.8,1868.7,6.08591771]
[1680634312604,0.74152354,1868.8,1868.7,5.65781771]
[1680634315619,0.74152354,1868.8,1868.7,2.71405]
[1680634316346,0.74152354,1868.8,1868.7,3.14215]
[1680634316657,1.36698535,1868.8,1868.7,3.14215]
[1680634316857,1.36698535,1868.8,1868.7,3.37215]
[1680634318740,1.36698535,1868.8,1868.7,6.13817218]
[1680634319447,0.74152354,1868.8,1868.7,6.13817218]
[1680634322051,1.38452354,1868.8,1868.7,6.13817218]
[1680634322637,1.38452354,1868.8,1868.7,5.71007218]
[1680634326223,1.38452354,1868.8,1868.7,6.13817218]
[1680634326438,1.38452354,1868.8,1868.7,5.71007218]
[1680634326963,1.38452354,1868.8,1868.7,2.94405]
[1680634327474,1.90417705,1868.8,1868.7,2.94405]
[1680634331976,1.90417705,1868.8,1868.7,3.37215]
[1680634334047,1.9006511,1868.8,1868.7,3.37215]
[1680634335383,1.38099759,1868.8,1868.7,6.13817218]
[1680634339661,1.38099759,1868.8,1868.7,11.77117218]
[1680634339863,1.38099759,1868.8,1868.7,13.03461846]
[1680634340659,0.09299759,1868.8,1868.7,7.40161846]
[1680634341494,0.09299759,1868.8,1868.7,10.40161846]
[1680634341680,0.09299759,1868.8,1868.7,16.03922646]
[1680634346194,0.09299759,1868.8,1868.7,16.57038426]
[1680634348115,0.09299759,1868.8,1868.7,16.5734649]
[1680634348803,0.09299759,1868.8,1868.7,16.5754649]
[1680634350019,0.11000001,1868.9,1868.8,7.72328]
[1680634350178,0.11000001,1868.9,1868.8,25.47905361]
[1680634350375,0.11000001,1868.9,1868.8,27.67905361]
[1680634352008,0.11000001,1868.9,1868.8,28.55505361]
[1680634354413,0.11000001,1868.9,1868.8,27.96305361]
[1680634355143,0.07000002,1869.0,1868.9,0.5]
[1680634355297,0.07000002,1869.0,1868.9,15.12368754]
[1680634355497,0.07000002,1869.0,1868.9,18.12368754]
[1680634356048,0.07000002,1869.0,1868.9,17.62368754]
[1680634357340,0.07000002,1869.0,1868.9,17.85368754]
[1680634358445,0.11000001,1869.1,1869.0,0.5]
[1680634358742,0.11000001,1869.1,1869.0,15.23250093]
[1680634358952,0.11000001,1869.1,1869.0,14.73710819]
[1680634360414,0.11000001,1869.1,1869.0,14.96710819]
[1680634365661,0.11000001,1869.1,1869.0,17.16710819]
[1680634367613,0.11000001,1869.2,1869.1,7.99172082]
[1680634367795,0.11000001,1869.2,1869.1,10.987743]
[1680634367968,0.11000001,1869.2,1869.1,13.987743]
[1680634384003,0.11000001,1869.2,1869.1,9.04103218]
[1680634384328,1.39400001,1869.2,1869.1,2.98002218]
[1680634384532,2.03700001,1869.2,1869.1,2.98002218]
[1680634384697,2.04600001,1869.2,1869.1,3.40803218]
[1680634385514,1.40500001,1869.2,1869.1,3.40803218]
[1680634385701,1.39600001,1869.2,1869.1,9.04103218]
[1680634386999,1.39600001,1869.2,1869.1,9.27103218]
[1680634387400,1.39600001,1869.2,1869.1,3.63803218]
[1680634387598,1.39600001,1869.2,1869.1,3.21002218]
[1680634387925,1.39600001,1869.2,1869.1,3.63803218]
[1680634388887,1.39259067,1869.2,1869.1,3.63803218]
[1680634392501,1.39259067,1869.2,1869.1,9.27103218]
[1680634393434,0.10659067,1869.2,1869.1,13.28444546]
[1680634393837,0.10659067,1869.2,1869.1,13.2895261]
[1680634394041,0.10659067,1869.2,1869.1,13.29413311]
[1680634401106,5.40631067,1869.2,1869.1,13.29413311]
[1680634401451,5.40931067,1869.2,1869.1,13.29413311]
[1680634402622,5.40931067,1869.2,1869.1,12.28071983]
[1680634405059,5.40931067,1869.2,1869.1,12.04611282]
[1680634405287,5.40931067,1869.2,1869.1,3.41311282]
[1680634405288,6.05031067,1869.2,1869.1,3.41311282]
[1680634406522,6.05031067,1869.2,1869.1,3.40911282]
[1680634406861,6.05031067,1869.2,1869.1,3.63911282]
[1680634407165,6.05031067,1869.2,1869.1,3.64111282]
[1680634410054,5.40931067,1869.2,1869.1,9.72883311]
[1680634410272,5.40931067,1869.2,1869.1,12.73083311]
[1680634410848,5.40931067,1869.2,1869.1,12.28071983]
[1680634412056,5.40931067,1869.2,1869.1,6.64771983]
[1680634412243,5.40931067,1869.2,1869.1,6.64311282]
[1680634412442,5.40661908,1869.2,1869.1,6.64311282]
[1680634413669,5.40661908,1869.2,1869.1,6.63911282]
[1680634413996,5.41561908,1869.2,1869.1,6.63803218]
[1680634414200,5.40961908,1869.2,1869.1,6.63911282]
[1680634414369,5.40661908,1869.2,1869.1,6.63911282]
[1680634415955,5.40661908,1869.2,1869.1,6.63803218]
[1680634415956,5.41561908,1869.2,1869.1,6.63803218]
[1680634416186,5.40661908,1869.2,1869.1,6.63911282]
[1680634419416,6.69061908,1869.2,1869.1,6.63911282]
[1680634419754,6.69061908,1869.2,1869.1,3.63803218]
[1680634420154,6.69961908,1869.2,1869.1,3.63803218]
[1680634432302,6.05861908,1869.2,1869.1,3.63803218]
[1680634435407,6.04623113,1869.2,1869.1,3.63803218]
[1680634437174,5.40323113,1869.2,1869.1,3.63803218]
[1680634449394,5.41223113,1869.2,1869.1,3.63589622]
[1680634450432,5.41223113,1869.2,1869.1,4.08625663]
[1680634456449,5.41223113,1869.2,1869.1,3.63589622]
[1680634458508,6.70023113,1869.2,1869.1,2.76602218]
[1680634459815,6.70023113,1869.2,1869.1,2.99602218]
[1680634460230,6.70023113,1869.2,1869.1,0.23]
[1680634460427,6.70023113,1869.2,1869.0,0.23]
[1680634460627,0.645,1869.1,1869.0,3.21003218]
[1680634461019,0.654,1869.1,1869.0,3.21003218]
[1680634461536,0.654,1869.1,1869.0,2.99602218]
[1680634462055,0.654,1869.1,1869.0,3.21003218]
[1680634462415,0.654,1869.1,1869.0,2.99602218]
[1680634463616,0.654,1869.1,1869.0,3.21003218]
[1680634466749,0.654,1869.1,1869.0,2.99602218]
[1680634467541,0.654,1869.1,1869.0,0.23]
[1680634467763,0.645,1869.1,1868.9,0.23]
[1680634468062,0.641,1869.0,1868.9,0.23]
[1680634468218,0.641,1869.0,1868.8,4.71803]
[1680634468420,0.641,1869.0,1868.8,4.504]
[1680634468663,0.641,1869.0,1868.8,4.71803]
[1680634472144,0.63705398,1869.0,1868.8,4.71803]
[1680634472347,0.644,1868.9,1868.8,4.71803]
[1680634472565,0.644,1868.9,1868.8,4.71911064]
[1680634472863,0.644,1868.9,1868.8,4.94911064]
[1680634473160,0.644,1868.9,1868.8,5.37919064]
[1680634473725,0.644,1868.9,1868.8,5.38119064]
[1680634474035,0.644,1868.9,1868.8,5.37919064]
[1680634475241,0.644,1868.9,1868.8,5.37269819]
[1680634478357,0.644,1868.9,1868.8,4.94461819]
[1680634490196,0.644,1868.9,1868.8,4.73058819]
[1680634490553,0.644,1868.9,1868.8,4.94462819]
[1680634490762,0.644,1868.9,1868.8,5.37731594]
[1680634491587,0.644,1868.9,1868.8,8.14333812]
[1680634492244,0.644,1868.9,1868.8,9.20787193]
[1680634492450,0.655,1869.1,1868.8,9.20787193]
[1680634492653,0.655,1869.1,1869.0,0.21401]
[1680634492954,0.655,1869.1,1869.0,3.21003218]
[1680634497407,0.655,1869.1,1869.0,2.99602218]
[1680634499893,0.646,1869.1,1869.0,2.99602218]
[1680634500491,6.04923113,1869.2,1869.0,2.99602218]
[1680634500692,6.04923113,1869.2,1869.1,0.23]
[1680634501332,6.04923113,1869.2,1869.1,3.21002218]
[1680634501482,5.40323113,1869.2,1869.1,4.8150544]
[1680634501668,5.41150663,1869.2,1869.1,4.8150544]
[1680634503395,5.40323113,1869.2,1869.1,3.96411504]
[1680634509994,5.40323113,1869.2,1869.1,3.53610504]
[1680634510194,5.40323113,1869.2,1869.1,3.53410504]
[1680634510527,5.40323113,1869.2,1869.1,3.53610504]
[1680634510928,5.40323113,1869.2,1869.1,3.96411504]
[1680634511731,5.40323113,1869.2,1869.1,3.64311282]
[1680634513517,5.40323113,1869.2,1869.1,3.21510282]
[1680634514025,5.40323113,1869.2,1869.1,3.21310282]
[1680634515600,5.40323113,1869.2,1869.1,3.21002218]
[1680634515795,5.40323113,1869.2,1869.1,2.99602218]
[1680634516099,6.69123113,1869.2,1869.0,0.00508064]
[1680634516418,0.646,1869.1,1868.9,0.00508064]
[1680634516624,0.646,1869.1,1868.9,2.98512282]
[1680634517601,0.646,1869.1,1868.9,3.41317282]
[1680634517809,0.646,1869.1,1869.0,0.23]
[1680634518009,0.646,1869.1,1869.0,0.44401]
[1680634522222,0.646,1869.1,1869.0,0.23]
[1680634523326,0.646,1869.1,1868.9,0.00508064]
[1680634523536,0.64333344,1869.0,1868.9,0.23]
[1680634523737,1.28933344,1869.0,1868.7,2.5]
[1680634523940,0.646,1868.8,1868.7,2.71404]
[1680634524238,0.646,1868.8,1868.7,2.94404]
[1680634525209,0.646,1868.8,1868.7,3.37214]
[1680634529368,0.646,1868.8,1868.7,3.79568406]
[1680634529906,0.646,1868.8,1868.7,6.56170624]
[1680634530535,0.642,1868.9,1868.7,6.56170624]
[1680634530721,0.642,1868.9,1868.8,0.23]
[1680634531045,0.642,1868.9,1868.8,0.87212]
[1680634531248,0.646,1869.0,1868.8,0.87212]
[1680634532441,0.646,1869.0,1868.8,3.63814218]
[1680634532607,1.49955103,1868.9,1868.8,4.2945108]
[1680634535240,1.49955103,1868.9,1868.8,3.63814218]
[1680634535778,1.49955103,1868.9,1868.8,3.21006218]
[1680634540081,1.49955103,1868.9,1868.8,0.44404]
[1680634540237,2.14155103,1868.9,1868.8,0.44404]
[1680634540567,2.78455103,1868.9,1868.7,2.5]
[1680634540865,1.288,1868.8,1868.7,2.5]
[1680634542654,2.64552682,1868.8,1868.7,2.5]
[1680634546882,2.66370931,1868.8,1868.7,2.5]
[1680634547092,9.16202481,1868.8,1868.7,2.5]
[1680634547304,9.16202481,1868.8,1868.5,0.00308064]
[1680634547305,19.87185149,1868.8,1868.5,0.00308064]
[1680634547512,5.633,1868.5,1868.1,0.00508064]
[1680634547715,0.645,1868.2,1868.1,0.00508064]
[1680634548685,0.595,1868.2,1868.0,4.71470819]
[1680634549708,0.595,1868.2,1868.0,7.21470819]
[1680634550214,0.595,1868.2,1868.0,7.00058819]
[1680634550759,0.595,1868.2,1868.0,7.00166883]
[1680634550988,0.595,1868.2,1868.0,4.50166883]
[1680634551185,0.595,1868.2,1868.0,4.50058819]
[1680634552087,0.645,1868.1,1868.0,4.50058819]
[1680634552896,0.645,1868.1,1868.0,4.71579883]
[1680634557664,1.88786773,1868.1,1868.0,4.71579883]
[1680634557901,1.88786773,1868.1,1868.0,4.71979883]
[1680634559791,1.88786773,1868.1,1868.0,4.50566883]
[1680634560304,1.88786773,1868.1,1868.0,0.00508064]
[1680634560305,2.53386773,1868.1,1868.0,0.00508064]
[1680634560507,2.53386773,1868.1,1867.9,0.1]
[1680634560711,1.284,1868.0,1867.9,0.1]
[1680634562205,1.927,1868.0,1867.9,0.1]
[1680634563878,1.94518249,1868.0,1867.9,0.1]
[1680634564420,8.22057249,1868.0,1867.9,0.1]
[1680634564623,10.98959467,1868.0,1867.9,0.1]
[1680634564832,13.98959467,1868.0,1867.9,0.1]
[1680634565385,17.20659467,1868.0,1867.9,0.1]
[1680634566534,18.49959467,1868.0,1867.9,0.1]
[1680634566736,18.49859467,1868.0,1867.9,0.1]
[1680634566881,18.50087017,1868.0,1867.8,0.1]
[1680634567076,14.61602218,1867.9,1867.8,0.1]
[1680634567281,17.55744218,1867.9,1867.8,0.1]
[1680634568491,17.12916218,1867.9,1867.8,0.1]
[1680634569615,10.932,1867.9,1867.8,0.1]
[1680634570001,11.14614,1867.9,1867.8,0.1]
[1680634571488,11.57442,1867.9,1867.8,0.1]
[1680634572637,12.74666999,1867.9,1867.8,0.1]
[1680634574594,3.717,1867.8,1867.6,0.1]
[1680634574729,11.56149,1867.7,1867.6,0.1]
[1680634574932,11.56449,1867.7,1867.6,0.1]
[1680634575518,12.72883233,1867.7,1867.6,0.1]
[1680634575721,11.13616,1867.7,1867.6,0.1]
[1680634577842,9.774,1867.7,1867.6,0.1]
[1680634582269,9.98816,1867.7,1867.6,0.1]
[1680634587696,11.14877647,1867.7,1867.6,0.1]
[1680634588056,11.15177647,1867.7,1867.6,0.1]
[1680634588261,1.16361647,1867.7,1867.6,0.31417]
[1680634588486,1.16061647,1867.7,1867.6,0.33]
[1680634588884,1.16061647,1867.7,1867.6,0.54417]
[1680634589595,1.28046899,1868.0,1867.6,0.54417]
[1680634589808,1.27746899,1868.0,1867.6,0.54417]
[1680634590007,1.27746899,1868.0,1867.6,0.97252]
[1680634590175,1.27746899,1868.0,1867.7,0.729]
[1680634590376,1.27746899,1868.0,1867.8,0.21415]
[1680634590684,1.27746899,1868.0,1867.7,0.729]
[1680634590900,1.27746899,1868.0,1867.8,0.23]
[1680634592174,0.13346899,1868.0,1867.8,0.23]
[1680634594482,1.141,1867.9,1867.7,0.729]
[1680634594671,6.774,1867.9,1867.7,0.729]
[1680634594876,6.777,1867.9,1867.7,0.729]
[1680634598785,6.7852755,1867.9,1867.7,0.729]
[1680634598989,6.77387199,1867.9,1867.7,0.729]
[1680634602725,0.58698838,1867.8,1867.7,0.729]
[1680634604491,10.57513838,1867.8,1867.6,0.1]
[1680634604756,7.57813838,1867.8,1867.7,0.328]
[1680634605245,10.57813838,1867.8,1867.7,0.328]
[1680634607847,16.98947056,1867.8,1867.7,0.328]
[1680634608058,17.00765305,1867.8,1867.6,0.1]
[1680634608216,12.54702218,1867.7,1867.6,0.1]
[1680634608428,13.19251218,1867.7,1867.6,0.1]
[1680634614231,13.72959564,1867.7,1867.6,0.1]
[1680634617659,14.30814541,1867.7,1867.6,0.1]
[1680634619952,19.52980541,1867.7,1867.6,0.1]
[1680634620861,18.38180541,1867.7,1867.6,0.1]
[1680634625071,18.38180541,1867.7,1867.0,0.02002975]
[1680634625072,32.8563184,1867.7,1867.0,0.02002975]
[1680634625384,32.8563184,1867.7,1866.3,0.52865]
[1680634625385,8.85,1867.0,1866.3,0.52865]
[1680634625585,6.781,1866.9,1866.5,0.21429]
[1680634625795,9.7922755,1866.9,1866.5,0.64289]
[1680634625933,9.7922755,1866.9,1866.7,0.214]
[1680634626740,5.633,1866.8,1866.7,0.214]
[1680634626963,5.6382755,1866.8,1866.7,0.21089937]
[1680634627169,5.636,1866.8,1866.7,0.21089937]
[1680634628587,5.65418249,1866.8,1866.7,0.21089937]
[1680634629055,7.43799249,1866.8,1866.4,0.1]
[1680634629256,6.99129,1866.7,1866.4,0.1]
[1680634629482,9.99429,1866.7,1866.4,0.1]
[1680634629755,0.01818249,1866.6,1866.4,0.1]
[1680634630752,0.01818249,1866.6,1866.5,0.211]
[1680634631484,9.78,1866.7,1866.5,0.211]
[1680634631691,3.003,1866.7,1866.5,0.211]
[1680634631986,1.1592755,1866.9,1866.5,0.4253]
[1680634632153,8.9874,1867.0,1866.5,0.4253]
[1680634632349,8.9986755,1867.0,1866.5,0.4253]
[1680634632587,9.2129255,1867.0,1866.5,0.211]
[1680634632785,0.58732553,1866.8,1866.5,0.211]
[1680634633273,6.22032553,1866.8,1866.5,0.211]
[1680634633589,6.781,1866.7,1866.5,0.211]
[1680634633803,6.99828,1866.7,1866.5,0.211]
[1680634634461,6.776,1866.6,1866.5,0.211]
[1680634634669,10.42187,1866.6,1866.5,0.211]
[1680634635293,9.99329,1866.6,1866.5,0.211]
[1680634635802,10.01147249,1866.6,1866.5,0.211]
[1680634636187,10.44005249,1866.6,1866.5,0.211]
[1680634636428,10.01147249,1866.6,1866.5,0.211]
[1680634636724,9.79718249,1866.6,1866.5,0.211]
[1680634637184,3.02118249,1866.6,1866.5,0.211]
[1680634637512,3.0,1866.6,1866.5,0.211]
[1680634637689,1.1552755,1866.8,1866.5,0.211]
[1680634637891,1.144,1866.8,1866.5,0.211]
[1680634638099,1.35827,1866.8,1866.5,0.211]
[1680634638298,5.633,1866.7,1866.5,0.211]
[1680634638511,5.86846249,1866.7,1866.5,0.211]
[1680634638713,9.76131218,1866.6,1866.5,0.211]
[1680634638914,14.55389218,1866.6,1866.4,0.1]
[1680634639126,19.74819249,1866.5,1866.4,0.1]
[1680634639433,22.51721467,1866.5,1866.4,0.1]
[1680634639600,31.85171467,1866.5,1866.4,0.1]
[1680634639803,32.33879978,1866.5,1866.4,0.05129149]
[1680634640206,31.83879978,1866.5,1866.4,0.05129149]
[1680634640621,31.35171467,1866.5,1866.4,0.05129149]
[1680634642029,31.35171467,1866.5,1865.8,0.004]
[1680634642030,32.49971467,1866.5,1865.8,0.003]
[1680634642259,32.49971467,1866.5,1865.5,0.1]
[1680634642260,5.633,1865.8,1865.5,0.1]
[1680634642443,5.633,1865.6,1865.5,0.105]
[1680634642756,9.2874855,1865.6,1865.3,0.1]
[1680634643246,3.0112755,1865.6,1865.3,0.1]
[1680634643423,3.0082755,1865.6,1865.4,0.079]
[1680634643597,3.2226755,1865.6,1865.4,0.079]
[1680634645311,3.0082755,1865.6,1865.4,0.079]
[1680634645515,0.2226755,1865.6,1865.4,0.079]
[1680634645715,8.8586755,1865.7,1865.4,0.079]
[1680634645951,0.01818249,1865.6,1865.4,0.079]
[1680634646159,0.23259249,1865.6,1865.4,0.079]
[1680634646361,0.01818249,1865.6,1865.4,0.079]
[1680634646563,5.633,1865.5,1865.4,0.079]
[1680634646765,5.6442755,1865.5,1865.4,0.079]
[1680634647609,0.0112755,1865.5,1865.4,0.079]
[1680634647820,5.66245799,1865.6,1865.4,0.079]
[1680634648835,5.87686799,1865.6,1865.4,0.079]
[1680634649763,5.66245799,1865.6,1865.4,0.079]
[1680634650760,5.87686799,1865.6,1865.4,0.079]
[1680634651056,6.27629,1865.4,1865.3,0.1]
[1680634651217,11.05103218,1865.4,1865.3,0.1]
[1680634651417,11.05930768,1865.4,1865.3,0.1]
[1680634651659,14.05930768,1865.4,1865.3,0.1]
[1680634652360,10.0067055,1865.4,1865.3,0.1]
[1680634652661,9.34221864,1865.4,1865.3,0.1]
[1680634653760,8.8587055,1865.4,1865.3,0.1]
[1680634654135,8.8587055,1865.4,1865.2,0.075]
[1680634654347,8.8587055,1865.4,1864.5,0.007]
[1680634654348,8.85,1865.0,1864.5,0.007]
[1680634654664,5.84751,1864.7,1864.3,0.1]
[1680634654865,5.85051,1864.7,1864.3,0.102]
[1680634655166,5.86869249,1864.7,1864.3,0.1]
[1680634655361,5.86869249,1864.7,1864.5,0.022]
[1680634655522,5.86869249,1864.7,1864.6,0.214351]
[1680634657468,5.65418249,1864.7,1864.6,0.214351]
[1680634657844,8.42020467,1864.7,1864.5,0.022]
[1680634658045,12.76002218,1864.6,1864.5,0.022]
[1680634658272,16.40658218,1864.6,1864.5,0.022]
[1680634658863,13.64056,1864.6,1864.5,0.022]
[1680634659282,13.64056,1864.6,1864.3,0.1]
[1680634659283,8.85,1864.4,1864.3,0.1]
[1680634659586,15.41283218,1864.4,1864.3,0.1]
[1680634659885,15.41283218,1864.4,1864.0,0.03755441]
[1680634659886,5.633,1863.8,1863.3,0.005]
[1680634660086,5.639,1863.8,1863.3,0.16967]
[1680634660383,5.8588855,1863.8,1863.2,0.21467]
[1680634660586,5.6442755,1863.8,1863.2,0.21467]
[1680634661102,5.6442755,1863.8,1863.2,0.6486516]
[1680634661248,5.6442755,1863.8,1863.2,0.5986516]
[1680634661685,5.6442755,1863.8,1863.4,0.1]
[1680634662184,6.7882755,1863.8,1863.4,0.31466]
[1680634662704,1.1552755,1863.8,1863.4,0.31466]
[1680634662988,0.0112755,1863.9,1863.5,0.44463]
[1680634663146,4.34313218,1864.3,1863.5,0.44463]
[1680634663147,0.0082755,1864.1,1863.5,0.44463]
[1680634663346,0.0082755,1864.1,1863.5,0.87854086]
[1680634663542,0.0082755,1864.1,1863.7,0.21462]
[1680634663771,0.0082755,1864.1,1863.7,0.64387]
[1680634665005,0.003,1864.2,1863.8,0.4446]
[1680634665006,0.0082755,1864.2,1863.8,0.4446]
[1680634666887,0.0082755,1864.2,1863.8,3.63985218]
[1680634667086,0.0082755,1864.3,1863.7,0.002]
[1680634667286,5.633,1864.3,1863.7,0.21461]
[1680634667499,5.633,1864.2,1863.7,0.64386]
[1680634667699,5.6442755,1864.2,1863.7,0.64386]
[1680634668087,5.6442755,1864.2,1863.5,9.4019]
[1680634668088,6.781,1864.0,1863.5,0.002]
[1680634668308,6.7922755,1864.0,1863.4,0.1]
[1680634668505,6.7922755,1864.0,1863.5,0.21464]
[1680634669293,6.7922755,1864.0,1863.5,0.64393]
[1680634669905,2.78420467,1863.9,1863.5,0.21464]
[1680634670085,2.78420467,1863.9,1863.4,0.1]
[1680634670086,5.633,1863.6,1863.4,0.1]
[1680634670287,5.6442755,1863.6,1863.4,0.74397]
[1680634670842,0.0112755,1863.6,1863.5,0.26264]
[1680634670989,0.0082755,1863.6,1863.5,0.26264]
[1680634671389,11.62429768,1863.6,1863.5,0.048]
[1680634671644,11.62429768,1863.6,1863.5,0.69193]
[1680634671645,5.6442755,1863.6,1863.5,0.69193]
[1680634671790,0.0112755,1863.6,1863.5,0.69193]
[1680634671997,0.0082755,1863.7,1863.5,0.26264]
[1680634672320,2.79248017,1863.8,1863.5,0.26264]
[1680634672548,2.76602218,1863.7,1863.5,0.048]
[1680634672752,5.99129768,1863.7,1863.5,0.048]
[1680634672952,5.633,1863.6,1863.5,0.26264]
[1680634673157,5.6442755,1863.6,1863.5,0.26264]
[1680634674080,5.6442755,1863.6,1863.5,0.048]
[1680634674367,0.0112755,1863.6,1863.5,0.26264]
[1680634674524,0.0082755,1863.6,1863.5,0.26264]
[1680634674725,0.0082755,1863.6,1863.5,0.048]
[1680634675167,0.0082755,1863.6,1863.5,0.69193]
[1680634675971,0.0082755,1863.6,1863.5,0.92193]
[1680634676271,1.152,1864.1,1863.5,0.92193]
[1680634676272,0.0082755,1863.8,1863.5,0.92193]
[1680634676559,0.0082755,1863.9,1863.5,0.92193]
[1680634677129,8.6412755,1863.9,1863.5,0.92193]
[1680634677326,8.6442755,1863.9,1863.5,0.92193]
[1680634677562,3.0112755,1863.9,1863.5,1.109984]
[1680634677765,0.0082755,1863.9,1863.6,2.99602218]
[1680634677972,0.0082755,1864.1,1863.7,1.50237]
[1680634678274,0.0082755,1864.1,1863.7,0.64387]
[1680634678432,0.0082755,1864.1,1863.9,0.048]
[1680634678844,6.7922755,1864.1,1863.9,0.048]
[1680634679081,6.7952755,1864.1,1863.9,0.048]
[1680634679937,6.7952755,1864.1,1863.9,0.2626]
[1680634680138,6.7952755,1864.1,1863.9,0.048]
[1680634681044,6.7952755,1864.1,1863.9,0.2626]
[1680634681869,12.77829768,1864.1,1863.9,0.048]
[1680634682042,6.785,1864.0,1863.9,0.048]
[1680634682245,6.7962755,1864.0,1863.9,0.048]
[1680634682568,12.77929768,1864.0,1863.9,0.048]
[1680634682742,15.77929768,1864.0,1863.9,0.048]
[1680634683654,15.76804014,1864.0,1863.9,0.048]
[1680634686667,15.98263014,1864.0,1863.9,0.048]
[1680634687033,15.98263014,1864.0,1863.5,0.21464]
[1680634687034,15.76804014,1864.0,1863.5,0.21464]
[1680634687235,15.76804014,1864.0,1863.1,0.002]
[1680634687236,5.52,1863.6,1863.1,0.002]
[1680634687451,11.141,1863.2,1863.0,0.5]
[1680634687785,11.141,1863.2,1863.0,0.04331]
[1680634687786,12.76702218,1863.1,1863.0,0.04331]
[1680634687985,15.77002218,1863.1,1863.0,0.04331]
[1680634688187,18.91202218,1863.1,1862.6,0.1]
[1680634688395,11.36374,1862.7,1862.6,0.1]
[1680634688544,13.91802218,1862.7,1862.6,0.1]
[1680634688748,15.76602218,1862.7,1862.6,0.1]
[1680634689355,15.76602218,1862.7,1862.3,0.1]
[1680634689356,5.633,1862.5,1862.3,0.1]
[1680634689591,9.76479218,1862.4,1862.3,0.1]
[1680634689764,9.55302218,1862.4,1862.3,0.1]
[1680634689968,9.787,1862.4,1862.3,0.1]
[1680634690169,10.00177,1862.4,1862.3,0.1]
[1680634690489,9.787,1862.4,1862.3,0.1]
[1680634690693,0.003,1862.4,1862.3,0.1]
[1680634690890,0.003,1862.5,1862.3,0.1]
[1680634691071,1.144,1862.7,1862.3,0.1]
[1680634691272,3.91002218,1862.7,1862.3,0.1]
[1680634691753,5.633,1862.6,1862.3,0.05]
[1680634691960,5.636,1862.6,1862.3,0.05]
[1680634693578,0.003,1862.6,1862.3,0.05]
[1680634693796,0.003,1862.8,1862.3,0.69435]
[1680634694093,3.0,1862.9,1862.5,0.21476]
[1680634694295,0.0082755,1862.9,1862.5,0.21938334]
[1680634694511,2.018,1863.0,1862.5,0.72075017]
[1680634694512,0.0082755,1863.0,1862.5,0.72075017]
[1680634694797,5.633,1863.1,1862.5,0.72075017]
[1680634695045,8.41029768,1863.1,1862.5,0.72075017]
[1680634695254,5.6442755,1863.1,1862.6,0.07207502]
[1680634695543,0.003,1863.1,1862.7,0.44473]
[1680634695845,5.633,1863.1,1862.7,0.87883284]
[1680634696010,5.636,1863.1,1862.7,0.97392363]
[1680634696853,0.003,1863.1,1862.7,0.97392363]
[1680634697151,5.633,1863.1,1862.7,0.97392363]
[1680634697347,5.636,1863.1,1862.7,0.97392363]
[1680634697829,0.003,1863.1,1862.8,0.09739236]
[1680634697998,0.0112755,1863.3,1862.9,0.23]
[1680634698198,5.2379355,1863.4,1862.9,0.23]
[1680634698398,2.25911799,1863.4,1862.9,0.23]
[1680634698600,2.04145799,1863.4,1862.9,0.23]
[1680634698818,2.04145799,1863.4,1862.9,0.44471]
[1680634699052,0.0112755,1863.5,1862.9,0.87414]
[1680634699265,5.2392755,1863.6,1863.0,0.087414]
[1680634699577,5.2392755,1863.6,1863.0,0.302114]
[1680634699949,5.633,1863.5,1863.0,0.302114]
[1680634700136,5.6442755,1863.5,1863.0,0.302114]
[1680634701335,5.8589155,1863.5,1863.0,0.087414]
[1680634701550,6.30638799,1863.5,1862.9,0.23]
[1680634702223,5.87709799,1863.5,1862.9,0.23]
[1680634702673,5.87709799,1863.5,1862.9,0.44471]
[1680634703228,5.87709799,1863.5,1862.9,0.23]
[1680634703439,5.87709799,1863.5,1862.9,0.44471]
[1680634704449,6.30638799,1863.5,1862.9,0.23]
[1680634704937,5.633,1863.3,1862.8,0.0046226]
[1680634705279,5.636,1863.3,1862.8,0.2193426]
[1680634705625,5.85067,1863.3,1862.8,0.0046226]
[1680634706736,5.85067,1863.3,1862.8,0.2346226]
[1680634707325,5.85067,1863.3,1862.8,0.0046226]
[1680634707523,5.85067,1863.3,1862.8,0.2193526]
[1680634707971,5.85067,1863.3,1862.8,0.0046226]
[1680634709325,5.86885249,1863.3,1862.8,0.0046226]
[1680634709943,5.86885249,1863.3,1862.8,0.2193426]
[1680634711165,5.86885249,1863.3,1862.8,0.0046226]
[1680634712243,7.64843592,1863.2,1862.8,0.2193426]
[1680634712441,7.65143592,1863.2,1862.8,0.2193426]
[1680634712639,0.003,1863.2,1862.8,0.6488026]
[1680634712866,3.0,1863.4,1862.9,0.23]
[1680634713039,3.0,1863.3,1863.0,0.64411]
[1680634713365,3.003,1863.4,1863.0,0.64411]
[1680634713570,0.003,1863.5,1863.1,0.23]
[1680634713730,5.633,1863.5,1863.2,0.21468]
[1680634713930,5.636,1863.5,1863.2,0.21468]
[1680634714350,0.003,1863.5,1863.2,0.21468]
[1680634714558,0.02118249,1863.7,1863.2,0.2193016]
[1680634714769,0.02118249,1863.7,1863.2,0.6486616]